fUST/lending_fUST_20250806
["ID","MTS","AMOUNT","RATE_DAILY","PERIOD"]
[377645784,1754476231918,-176.53,0.00028546,2]
[377645786,1754476231927,-2263.4950438,0.00028782,2]
[377645788,1754476231937,-244.9755916,0.00028888,2]
[377645789,1754476231947,-527.46908335,0.00029,10]
[377645790,1754476231956,-527.46908335,0.00029,10]
[377645791,1754476231966,-461.26544088,0.00029211,2]
[377645792,1754476231976,-300.0,0.00029211,2]
[377645793,1754476231987,-294.0,0.00029211,2]
[377645794,1754476231997,-842.45170444,0.00029212,2]
[377645795,1754476232006,-160.0,0.00029212,2]
[377645796,1754476232015,-2148.0,0.00029625,2]
[377645798,1754476232025,-408.0,0.00029625,2]
[377645801,1754476232036,-151.0,0.000299,10]
[377645803,1754476232045,-500.0,0.0002992,2]
[377645805,1754476232056,-2087.34165118,0.0002993,13]
[377645807,1754476232065,-813.632,0.00029939,2]
[377645809,1754476232074,-2200.0,0.00029939,2]
[377645811,1754476232083,-800.0,0.00029958,2]
[377645813,1754476232092,-700.0,0.00029962,2]
[377645815,1754476232102,-800.0,0.00029979,2]
[377645817,1754476232111,-1008.02252986,0.00030129,2]
[377645819,1754476232120,-45019.94284299,0.0003013,2]
[377645821,1754476232130,-400.0,0.00030137,120]
[377645822,1754476232139,-151.0,0.00030141,6]
[377645823,1754476232148,-500.0,0.00030173,5]
[377645824,1754476232157,-961.4018799,0.000302,2]
[377645825,1754476232166,-800.0,0.00030203,7]
[377645826,1754476232175,-500.0,0.00030261,7]
[377645827,1754476232185,-2689.11363669,0.0003029,15]
[377645828,1754476232194,-151.0,0.000304,20]
[377645829,1754476232204,-151.0,0.00030493,7]
[377645830,1754476232213,-260.78337221,0.00030624,120]
[377645831,1754476232223,-155.0,0.00030658,41]
[377645832,1754476232232,-700.0,0.00030704,7]
[377645833,1754476232242,-2087.34165103,0.00030722,14]
[377645834,1754476232252,-235026.78864515,0.000308,2]
[377645835,1754476237002,179.40372219,0.0003013,120]
[377645837,1754476237950,-158.882406,0.00028711,2]
[377645838,1754476237960,-158.882406,0.00030085,5]
[377645840,1754476237970,-500.0,0.00030129,2]
[377645841,1754476237979,-500.0,0.00030129,2]
[377645842,1754476237990,-500.0,0.00030129,2]
[377645843,1754476237999,-500.0,0.00030129,2]
[377645844,1754476238009,-500.0,0.00030129,2]
[377645845,1754476238018,-500.0,0.00030129,2]
[377645847,1754476238028,-500.0,0.00030129,2]
[377645848,1754476238037,-488.36653667,0.00030129,2]
[377645849,1754476238047,-500.0,0.00030129,2]
[377645851,1754476238057,-500.0,0.00030129,2]
[377645853,1754476238066,-500.0,0.00030129,2]
[377645854,1754476238075,-500.0,0.00030129,2]
[377645855,1754476238084,-500.0,0.00030129,2]
[377645856,1754476238093,-500.0,0.00030129,2]
[377645857,1754476238105,-500.0,0.00030129,2]
[377645858,1754476238114,-500.0,0.00030129,2]
[377645859,1754476238123,-400.31432041,0.00030129,2]
[377645860,1754476238132,-500.0,0.00030129,2]
[377645861,1754476238141,-500.0,0.00030129,2]
[377645862,1754476238150,-500.0,0.00030129,2]
[377645863,1754476238159,-500.0,0.00030129,2]
[377645865,1754476238168,-500.0,0.00030129,2]
[377645867,1754476238177,-500.0,0.00030129,2]
[377645869,1754476238186,-500.0,0.00030129,2]
[377645870,1754476238195,-500.0,0.00030129,2]
[377645871,1754476238204,-500.0,0.00030129,2]
[377645872,1754476238214,-606.19288071,0.00030129,2]
[377645873,1754476238223,-500.0,0.00030129,2]
[377645874,1754476238232,-214.52725812,0.00030129,2]
[377645875,1754476238242,-500.0,0.00030129,2]
[377645876,1754476238252,-500.0,0.00030129,2]
[377645877,1754476238261,-500.0,0.00030129,2]
[377645878,1754476238271,-500.0,0.00030129,2]
[377645879,1754476238280,-500.0,0.00030129,2]
[377645880,1754476238290,-500.0,0.00030129,2]
[377645881,1754476238299,-500.0,0.00030129,2]
[377645882,1754476238310,-500.0,0.00030129,2]
[377645883,1754476238319,-500.0,0.00030129,2]
[377645884,1754476238334,-500.0,0.00030129,2]
[377645885,1754476238344,-500.0,0.00030129,2]
[377645886,1754476238353,-500.0,0.00030129,2]
[377645887,1754476238362,-500.0,0.00030129,2]
[377645888,1754476238373,-500.0,0.00030129,2]
[377645889,1754476238383,-500.0,0.00030129,2]
[377645890,1754476238392,-500.0,0.00030129,2]
[377645891,1754476238403,-500.0,0.00030129,2]
[377645892,1754476238413,-199.30355678,0.00030129,2]
[377645893,1754476238423,-500.0,0.00030129,2]
[377645894,1754476238433,-500.0,0.00030129,2]
[377645895,1754476238442,-500.0,0.00030129,2]
[377645896,1754476238451,-500.0,0.00030129,2]
[377645897,1754476238461,-500.0,0.00030129,2]
[377645898,1754476238470,-500.0,0.00030129,2]
[377645899,1754476238480,-500.0,0.00030129,2]
[377645900,1754476238490,-500.0,0.00030129,2]
[377645901,1754476238499,-500.0,0.00030129,2]
[377645902,1754476238508,-500.0,0.00030129,2]
[377645904,1754476238518,-500.0,0.00030129,2]
[377645905,1754476238527,-312447.0550454,0.000308,2]
[377645906,1754476238539,-1446.143164,0.000308,2]
[377645908,1754476238550,-2888.86462427,0.000308,2]
[377646044,1754476239848,-310.41297489,0.000308,2]
[377646667,1754476246068,-702.06664328,0.000308,2]
[377647145,1754476341431,233.0,0.00024551,2]
[377647146,1754476373064,1306.749,0.0003013,120]
[377647147,1754476672129,1497.811016,0.00027996,120]
[377647153,1754477020391,2728.73080664,0.00024551,2]
[377647155,1754477067988,162.65096,0.00013699,2]
[377647156,1754477140131,-1176.76102071,0.00025,4]
[377647157,1754477228094,-1260.18723532,0.00025428,2]
[377647158,1754477231083,-692.17208784,0.00025428,2]
[377647159,1754477238095,-244.02160559,0.00028142,2]
[377647160,1754477373164,150.0,0.00025896,2]
[377647164,1754477432082,-1270.05628342,0.000277,8]
[377647165,1754477432095,-1367.71682953,0.000277,8]
[377647166,1754477432104,-300.0,0.00027899,2]
[377647167,1754477432113,-36.27432794,0.000279,2]
[377647168,1754477432134,-340.0914929,0.000279,2]
[377647643,1754477437880,-17014.48972816,0.000279,2]
[377647645,1754477437890,-1091.33741611,0.00028142,2]
[377647647,1754477437900,-246.0,0.00028172,5]
[377647649,1754477437909,-216.47163855,0.00028407,2]
[377647651,1754477437918,-160.0,0.00028407,2]
[377647653,1754477437928,-160.0,0.00028407,2]
[377647656,1754477437942,-461.26544088,0.00028407,2]
[377647658,1754477437951,-160.0,0.00028407,2]
[377647660,1754477437960,-842.45170444,0.00028407,2]
[377647662,1754477437970,-246.0,0.00028511,5]
[377647664,1754477437979,-2637.77311291,0.00028569,10]
[377647666,1754477437993,-201.149912,0.00028711,2]
[377647668,1754477438014,-246.0,0.0002885,6]
[377647670,1754477438024,-527.46908335,0.00029,10]
[377647672,1754477438036,-204.2,0.00029182,15]
[377647675,1754477438046,-246.0,0.00029189,6]
[377647677,1754477438060,-204.2,0.00029282,15]
[377647679,1754477438069,-2637.77311291,0.00029438,12]
[377647681,1754477438078,-246.0,0.00029528,6]
[377647683,1754477438087,-1537.49561917,0.00029766,2]
[377647686,1754477438098,-500.0,0.00029864,2]
[377647688,1754477438107,-500.0,0.00029864,2]
[377647690,1754477438117,-500.0,0.00029864,2]
[377647692,1754477438126,-500.0,0.00029864,2]
[377647694,1754477438135,-500.0,0.00029864,2]
[377647696,1754477438145,-500.0,0.00029864,2]
[377647698,1754477438154,-557.49868756,0.00029864,2]
[377647700,1754477438163,-500.0,0.00029864,2]
[377647702,1754477438173,-500.0,0.00029864,2]
[377647704,1754477438183,-500.0,0.00029864,2]
[377647706,1754477438192,-500.0,0.00029864,2]
[377647708,1754477438201,-500.0,0.00029864,2]
[377647710,1754477438210,-500.0,0.00029864,2]
[377647712,1754477438220,-500.0,0.00029864,2]
[377647714,1754477438229,-500.0,0.00029864,2]
[377647716,1754477438238,-500.0,0.00029864,2]
[377647717,1754477438247,-500.0,0.00029864,2]
[377647719,1754477438257,-500.0,0.00029864,2]
[377647721,1754477438266,-500.0,0.00029864,2]
[377647723,1754477438275,-500.0,0.00029864,2]
[377647725,1754477438285,-500.0,0.00029864,2]
[377647727,1754477438294,-500.0,0.00029864,2]
[377647729,1754477438303,-500.0,0.00029864,2]
[377647731,1754477438312,-481.29380068,0.00029864,2]
[377647733,1754477438322,-500.0,0.00029864,2]
[377647735,1754477438331,-500.0,0.00029864,2]
[377647737,1754477438340,-500.0,0.00029864,2]
[377647739,1754477438350,-500.0,0.00029864,2]
[377647742,1754477438359,-500.0,0.00029864,2]
[377647744,1754477438368,-500.0,0.00029864,2]
[377647745,1754477438379,-500.0,0.00029864,2]
[377647748,1754477438389,-500.0,0.00029864,2]
[377647750,1754477438400,-359.90324239,0.00029864,2]
[377647751,1754477438410,-500.0,0.00029864,2]
[377647754,1754477438424,-500.0,0.00029864,2]
[377647756,1754477438434,-500.0,0.00029864,2]
[377647757,1754477438444,-500.0,0.00029864,2]
[377647760,1754477438455,-500.0,0.00029864,2]
[377647761,1754477438465,-500.0,0.00029864,2]
[377647763,1754477438474,-500.0,0.00029864,2]
[377647765,1754477438483,-500.0,0.00029864,2]
[377647767,1754477438492,-340.0,0.00029864,2]
[377647769,1754477438501,-500.0,0.00029864,2]
[377647771,1754477438510,-500.0,0.00029864,2]
[377647773,1754477438520,-400.31432041,0.00029864,2]
[377647775,1754477438532,-500.0,0.00029864,2]
[377647777,1754477438543,-500.0,0.00029864,2]
[377647779,1754477438553,-500.0,0.00029864,2]
[377647781,1754477438562,-500.0,0.00029864,2]
[377647783,1754477438571,-500.0,0.00029864,2]
[377647785,1754477438581,-500.0,0.00029864,2]
[377647787,1754477438590,-500.0,0.00029864,2]
[377647789,1754477438599,-500.0,0.00029864,2]
[377647791,1754477438608,-500.0,0.00029864,2]
[377647794,1754477438619,-500.0,0.00029864,2]
[377647795,1754477438629,-500.0,0.00029864,2]
[377647798,1754477438639,-500.0,0.00029864,2]
[377647800,1754477438649,-500.0,0.00029864,2]
[377647802,1754477438659,-500.0,0.00029864,2]
[377647803,1754477438669,-500.0,0.00029864,2]
[377647805,1754477438678,-500.0,0.00029864,2]
[377647808,1754477438688,-500.0,0.00029864,2]
[377647809,1754477438698,-500.0,0.00029864,2]
[377647812,1754477438708,-500.0,0.00029864,2]
[377647814,1754477438718,-500.0,0.00029864,2]
[377647816,1754477438728,-500.0,0.00029864,2]
[377647818,1754477438739,-500.0,0.00029864,2]
[377647820,1754477438749,-500.0,0.00029864,2]
[377647822,1754477438759,-500.0,0.00029864,2]
[377647824,1754477438768,-500.0,0.00029864,2]
[377647826,1754477438778,-500.0,0.00029864,2]
[377647828,1754477438787,-500.0,0.00029864,2]
[377647830,1754477438797,-500.0,0.00029864,2]
[377647832,1754477438807,-500.0,0.00029864,2]
[377647834,1754477438817,-370.79926966,0.00029864,2]
[377647836,1754477438826,-500.0,0.00029864,2]
[377647838,1754477438837,-500.0,0.00029864,2]
[377647840,1754477438848,-500.0,0.00029864,2]
[377647842,1754477438858,-349.30355678,0.00029864,2]
[377647844,1754477438867,-500.0,0.00029864,2]
[377647846,1754477438877,-500.0,0.00029864,2]
[377647847,1754477438886,-500.0,0.00029864,2]
[377647849,1754477438895,-500.0,0.00029864,2]
[377647851,1754477438905,-500.0,0.00029864,2]
[377647853,1754477438914,-500.0,0.00029864,2]
[377647854,1754477438924,-500.0,0.00029864,2]
[377647856,1754477438933,-500.0,0.00029864,2]
[377647857,1754477438942,-500.0,0.00029864,2]
[377647858,1754477438951,-500.0,0.00029864,2]
[377647859,1754477438961,-500.0,0.00029864,2]
[377647860,1754477438971,-500.0,0.00029864,2]
[377647861,1754477438980,-500.0,0.00029864,2]
[377647862,1754477438994,-500.0,0.00029864,2]
[377647863,1754477439004,-488.36653667,0.00029865,2]
[377647864,1754477439013,-246.0,0.00029867,6]
[377647865,1754477439023,-971.0,0.00029905,2]
[377647866,1754477439034,-636.0,0.00029905,2]
[377647867,1754477439045,-2148.0,0.00029905,2]
[377647868,1754477439054,-800.0,0.00029997,2]
[377647869,1754477439064,-760.0,0.0003,7]
[377647870,1754477439073,-250.0,0.00030012,2]
[377647871,1754477439083,-159.1,0.000301,3]
[377647872,1754477439092,-420.0,0.00030134,2]
[377647873,1754477439101,-400.0,0.00030137,120]
[377647874,1754477439110,-500.0,0.00030173,5]
[377647875,1754477439119,-500.0,0.00030173,5]
[377647876,1754477439128,-2200.0,0.00030193,2]
[377647877,1754477439138,-246.0,0.00030206,7]
[377647878,1754477439147,-2637.77311291,0.00030307,13]
[377647879,1754477439157,-500.0,0.00030387,7]
[377647880,1754477439166,-156.479824,0.0003045,2]
[377647881,1754477439174,-2478.1364017,0.00030473,2]
[377647882,1754477439184,-8636.16100935,0.00030473,2]
[377647883,1754477439194,-943.0,0.00030526,120]
[377647884,1754477439203,-363.0,0.00030526,120]
[377647885,1754477439213,-14573.9474452,0.00030536,2]
[377647886,1754477439221,-1170.7202985,0.00030536,2]
[377647887,1754477439231,-943.0,0.00030536,120]
[377647888,1754477439240,-363.0,0.00030536,120]
[377647889,1754477439249,-269.38,0.00030536,3]
[377647890,1754477439258,-808.15,0.00030536,3]
[377647891,1754477439268,-250.0,0.00030538,2]
[377647892,1754477439278,-250.0,0.00030538,2]
[377647893,1754477439286,-151.0,0.00030538,2]
[377647894,1754477439296,-177.81231386,0.00030545,2]
[377647895,1754477439305,-246.0,0.00030545,7]
[377647896,1754477439314,-58295.7897808,0.00030546,2]
[377647897,1754477439323,-4682.881194,0.00030546,2]
[377647898,1754477439333,-943.0,0.00030546,120]
[377647899,1754477439342,-363.0,0.00030546,120]
[377647900,1754477439351,-157842.28669281,0.00030556,2]
[377647901,1754477439361,-500.0,0.00030573,5]
[377647902,1754477439370,-500.0,0.00030573,5]
[377647903,1754477439380,-337.73291325,0.00030573,5]
[377647904,1754477439390,-500.0,0.00030573,5]
[377647905,1754477439399,-500.0,0.00030573,5]
[377647906,1754477439408,-500.0,0.00030573,5]
[377647907,1754477439417,-500.0,0.00030573,5]
[377647908,1754477439427,-500.0,0.00030573,2]
[377647909,1754477439436,-500.0,0.00030573,5]
[377647910,1754477439445,-500.0,0.00030573,5]
[377647911,1754477439454,-500.0,0.00030573,5]
[377647912,1754477439464,-500.0,0.00030573,5]
[377647913,1754477439473,-500.0,0.00030573,5]
[377647914,1754477439482,-500.0,0.00030573,5]
[377647915,1754477439491,-500.0,0.00030573,5]
[377647916,1754477439501,-233.84242908,0.00030573,2]
[377647918,1754477439882,-76.90800976,0.00030573,2]
[377647919,1754477440713,-27.11351173,0.00030573,2]
[377647920,1754477440767,-162.13604943,0.00030573,2]
[377647921,1754477440776,-503.61558073,0.00030573,5]
[377647922,1754477440785,-263.32571122,0.00030573,5]
[377647933,1754477443285,-236.67428878,0.00030573,5]
[377647934,1754477443295,-500.0,0.00030573,5]
[377647935,1754477443305,-504.52931059,0.00030573,5]
[377647936,1754477443315,-436.46782515,0.00030573,5]
[377647943,1754477446312,-63.53217485,0.00030573,5]
[377647945,1754477446322,-500.0,0.00030573,5]
[377647946,1754477446331,-500.0,0.00030573,5]
[377647947,1754477446341,-500.0,0.00030573,5]
[377647948,1754477446350,-1000.0,0.00030595,7]
[377647949,1754477446359,-260.78337221,0.00030621,120]
[377647950,1754477446369,-500.0,0.00030721,5]
[377647951,1754477446379,-500.0,0.00030721,7]
[377647953,1754477446390,-1000.0,0.00030798,7]
[377647954,1754477446400,-198695.10603501,0.000308,2]
[377647955,1754477446410,-1746.09742847,0.000308,2]
[377647956,1754477446420,-630.83398652,0.000308,2]
[377647957,1754477446430,-158.39466649,0.000308,2]
[377647958,1754477446440,-504.1940556,0.000308,2]
[377647959,1754477446449,-2014.75944617,0.000308,2]
[377647960,1754477446458,-2478.1364017,0.00030801,2]
[377647961,1754477446467,-246.0,0.00030884,7]
[377647962,1754477446479,-150.0,0.00030896,2]
[377647963,1754477446488,-500.0,0.00030961,7]
[377647964,1754477446497,-302.24859597,0.0003099,2]
[377647965,1754477446506,-2933.60383739,0.00031,120]
[377647966,1754477446516,-1000.0,0.00031012,7]
[377647967,1754477446527,-1000.0,0.00031069,7]
[377647968,1754477446536,-156.0,0.000311,4]
[377647969,1754477446546,-862.9,0.000311,2]
[377647970,1754477446555,-14573.9474452,0.00031118,2]
[377647971,1754477446565,-1170.7202985,0.00031118,2]
[377647972,1754477446575,-1000.0,0.00031121,5]
[377647974,1754477446586,-1002.45798247,0.00031121,5]
[377647976,1754477446597,-1000.0,0.00031121,5]
[377647977,1754477446610,-521.19136704,0.00031121,5]
[377647978,1754477446621,-1000.0,0.00031121,2]
[377647979,1754477446632,-500.0,0.00031121,5]
[377647980,1754477446643,-1000.0,0.00031121,5]
[377647981,1754477446654,-1000.0,0.00031121,5]
[377647982,1754477446664,-1000.0,0.00031121,5]
[377647983,1754477446674,-1000.0,0.00031121,5]
[377647984,1754477446683,-1000.0,0.00031121,5]
[377647985,1754477446693,-501.54931793,0.00031121,5]
[377647986,1754477446703,-1000.0,0.00031121,5]
[377647987,1754477446712,-601.9764861,0.00031121,5]
[377647988,1754477446722,-1000.0,0.00031121,2]
[377647989,1754477446731,-500.0,0.00031121,5]
[377647990,1754477446740,-1000.0,0.00031121,5]
[377647991,1754477446750,-1000.0,0.00031121,5]
[377647992,1754477446760,-930.33298777,0.00031121,5]
[377647993,1754477446770,-1000.0,0.00031121,5]
[377647994,1754477446780,-600.0,0.00031127,7]
[377647995,1754477446790,-2478.1364017,0.00031128,2]
[377647996,1754477446799,-8636.16100933,0.00031129,2]
[377647997,1754477446809,-600.0,0.00031152,7]
[377647998,1754477446819,-2637.77311291,0.00031176,15]
[377647999,1754477446829,-156.479824,0.00031176,2]
[377648000,1754477446838,-246.0,0.00031223,7]
[377648001,1754477446847,-200.0,0.00031248,15]
[377648002,1754477446857,-200.0,0.00031248,15]
[377648003,1754477446867,-200.0,0.00031248,15]
[377648004,1754477446876,-1023.87,0.0003125,120]
[377648005,1754477446886,-1000.0,0.0003127,7]
[377648006,1754477446896,-1501.969113,0.000313,7]
[377648007,1754477446906,-156.479824,0.00031419,5]
[377648008,1754477446915,-2478.1364017,0.00031456,2]
[377648009,1754477446925,-1000.0,0.00031515,7]
[377648010,1754477446935,-600.0,0.00031526,7]
[377648011,1754477446944,-246.0,0.00031562,7]
[377648012,1754477446954,-500.0,0.00031593,7]
[377648013,1754477446964,-151.0,0.000316,15]
[377648014,1754477446974,-151.0,0.00031668,7]
[377648015,1754477446984,-1500.0,0.00031668,5]
[377648016,1754477446997,-1500.0,0.00031668,5]
[377648017,1754477447007,-647.39265393,0.00031668,2]
[377648018,1754477447017,-1500.0,0.00031668,5]
[377648019,1754477447029,-502.98394793,0.00031668,5]
[377648020,1754477447038,-1500.0,0.00031668,5]
[377648021,1754477447048,-1500.0,0.00031668,5]
[377648022,1754477447057,-1507.76762725,0.00031668,5]
[377648023,1754477447069,-1000.0,0.00031668,5]
[377648024,1754477447078,-1500.0,0.00031668,2]
[377648025,1754477447087,-526.64978304,0.00031668,5]
[377648026,1754477447097,-1500.0,0.00031668,5]
[377648027,1754477447107,-1500.0,0.00031668,5]
[377648028,1754477447116,-542.97728237,0.00031685,7]
[377648029,1754477447126,-1566.60983735,0.00031748,50]
[377648030,1754477447136,-151.0,0.00031752,7]
[377648031,1754477447146,-151.0,0.00031752,7]
[377648032,1754477447155,-151.0,0.00031752,7]
[377648033,1754477447165,-151.0,0.00031752,7]
[377648034,1754477447174,-275.014674,0.00031752,7]
[377648035,1754477447183,-14573.9474452,0.00031752,2]
[377648036,1754477447192,-1170.7202985,0.00031752,2]
[377648037,1754477447201,-1000.0,0.00031754,7]
[377648038,1754477447211,-500.0,0.00031773,5]
[377648039,1754477447220,-320.44311548,0.00031773,5]
[377648040,1754477447229,-500.0,0.00031773,5]
[377648041,1754477447238,-500.0,0.00031773,5]
[377648042,1754477447248,-308.83959206,0.00031773,5]
[377648043,1754477447258,-500.0,0.00031773,5]
[377648044,1754477447267,-551.72797085,0.00031773,5]
[377648045,1754477447276,-500.0,0.00031773,5]
[377648046,1754477447285,-150.0,0.00031773,5]
[377648047,1754477447294,-500.0,0.00031773,5]
[377648048,1754477447303,-150.0,0.00031773,3]
[377648049,1754477447312,-161.52264247,0.00031783,2]
[377648050,1754477447321,-171.49866878,0.00031783,2]
[377648051,1754477447330,-2478.1364017,0.00031783,2]
[377648052,1754477447339,-8636.16100933,0.00031785,2]
[377648053,1754477447348,-1676.86,0.000318,7]
[377648054,1754477447358,-151.0,0.000318,11]
[377648055,1754477447367,-1500.0,0.000318,7]
[377648056,1754477447376,-14573.9474452,0.00031802,2]
[377648057,1754477447386,-1170.7202985,0.00031802,2]
[377648058,1754477447395,-19228.97878596,0.00031822,5]
[377648059,1754477447404,-411.76787954,0.0003185,30]
[377648060,1754477447413,-943.0,0.00031853,120]
[377648061,1754477447422,-363.0,0.00031853,120]
[377648062,1754477447431,-150.0,0.00031857,120]
[377648063,1754477447441,-500.0,0.00031858,2]
[377648064,1754477447450,-168.81,0.00031858,120]
[377648065,1754477447459,-943.0,0.00031863,120]
[377648066,1754477447469,-943.0,0.00031863,120]
[377648067,1754477447478,-363.0,0.00031863,120]
[377648068,1754477447487,-363.0,0.00031863,120]
[377648069,1754477447497,-150.5,0.00031868,120]
[377648070,1754477447507,-500.0,0.00031872,2]
[377648071,1754477447516,-500.0,0.00031872,2]
[377648072,1754477447526,-200.0,0.00031873,5]
[377648073,1754477447535,-501.57996362,0.00031873,5]
[377648074,1754477447544,-506.155306,0.00031873,5]
[377648075,1754477447553,-498.3412815,0.00031873,5]
[377648076,1754477447563,-14573.9474452,0.00031873,2]
[377648077,1754477447572,-1170.7202985,0.00031873,2]
[377648078,1754477447582,-943.0,0.00031873,120]
[377648079,1754477447591,-943.0,0.00031873,120]
[377648080,1754477447600,-363.0,0.00031873,120]
[377648081,1754477447610,-363.0,0.00031873,120]
[377648082,1754477447619,-1378.0,0.00031878,52]
[377648083,1754477447629,-1000.0,0.0003188,7]
[377648084,1754477447638,-284.792381,0.00031883,7]
[377648085,1754477447647,-151.0,0.00031883,7]
[377648086,1754477447657,-151.0,0.00031883,7]
[377648087,1754477447666,-151.0,0.00031883,7]
[377648088,1754477447675,-151.0,0.00031883,7]
[377648089,1754477447685,-224.807519,0.00031883,7]
[377648090,1754477447695,-500.0,0.00031883,60]
[377648091,1754477447704,-151.0,0.00031883,7]
[377648092,1754477447713,-168.20976658,0.00031883,60]
[377648093,1754477447723,-151.0,0.00031883,7]
[377648094,1754477447732,-151.0,0.00031883,7]
[377648095,1754477447741,-151.0,0.00031883,7]
[377648096,1754477447750,-251.714054,0.00031883,7]
[377648097,1754477447760,-151.0,0.00031883,7]
[377648098,1754477447770,-219.910588,0.00031883,7]
[377648099,1754477447780,-500.0,0.00031883,60]
[377648100,1754477447790,-151.886842,0.00031883,7]
[377648101,1754477447799,-151.0,0.00031883,60]
[377648102,1754477447808,-151.0,0.00031883,7]
[377648103,1754477447818,-151.0,0.00031883,7]
[377648104,1754477447828,-151.0,0.00031883,7]
[377648105,1754477447837,-151.0,0.00031883,7]
[377648106,1754477447847,-151.0,0.00031883,7]
[377648107,1754477447858,-151.0,0.00031883,7]
[377648108,1754477447868,-151.0,0.00031883,7]
[377648109,1754477447878,-151.0,0.00031883,7]
[377648110,1754477447888,-151.0,0.00031883,7]
[377648111,1754477447898,-151.0,0.00031883,7]
[377648112,1754477447908,-151.0,0.00031883,7]
[377648113,1754477447917,-151.0,0.00031883,7]
[377648114,1754477447926,-164.492334,0.00031883,7]
[377648115,1754477447936,-151.0,0.00031883,7]
[377648116,1754477447946,-151.0,0.00031883,7]
[377648117,1754477447955,-151.0,0.00031883,7]
[377648118,1754477447966,-151.0,0.00031883,7]
[377648119,1754477447978,-151.0,0.00031883,7]
[377648120,1754477447990,-151.0,0.00031883,7]
[377648121,1754477448000,-151.0,0.00031883,7]
[377648122,1754477448010,-163.388706,0.00031883,7]
[377648123,1754477448020,-151.0,0.00031883,7]
[377648124,1754477448030,-151.0,0.00031883,7]
[377648125,1754477448039,-151.0,0.00031883,7]
[377648126,1754477448049,-151.0,0.00031883,7]
[377648127,1754477448059,-151.0,0.00031883,7]
[377648128,1754477448070,-151.0,0.00031883,7]
[377648129,1754477448081,-151.0,0.00031883,7]
[377648130,1754477448091,-151.0,0.00031883,7]
[377648131,1754477448102,-151.0,0.00031883,7]
[377648132,1754477448112,-151.0,0.00031883,7]
[377648133,1754477448123,-151.0,0.00031883,7]
[377648134,1754477448133,-151.0,0.00031883,7]
[377648135,1754477448143,-151.0,0.00031883,7]
[377648136,1754477448153,-151.0,0.00031883,7]
[377648137,1754477448163,-151.0,0.00031883,7]
[377648138,1754477448173,-151.0,0.00031883,7]
[377648139,1754477448183,-151.0,0.00031883,7]
[377648140,1754477448195,-151.0,0.00031883,7]
[377648141,1754477448204,-151.0,0.00031883,7]
[377648142,1754477448214,-151.0,0.00031883,7]
[377648143,1754477448225,-151.0,0.00031883,7]
[377648144,1754477448235,-258.06302,0.00031883,7]
[377648145,1754477448245,-151.0,0.00031883,7]
[377648146,1754477448254,-151.0,0.00031883,7]
[377648147,1754477448263,-244.678672,0.00031883,7]
[377648148,1754477448273,-151.0,0.00031883,7]
[377648149,1754477448282,-151.0,0.00031883,7]
[377648150,1754477448292,-151.0,0.00031883,7]
[377648151,1754477448302,-151.0,0.00031883,7]
[377648152,1754477448311,-252.185704,0.00031883,7]
[377648153,1754477448321,-173.359993,0.00031883,7]